Entity ,Pay date,Expense Type(T),Expense Area(T),Supplier(T),Transaction Number,Amount, Description
NS&I,20/05/2020,Unitary fee - Outsource partner,Commercial Contracts,Atos IT Services UK Ltd,4016506,"4,286,903.56",Unitary Service Charge - May 2020
NS&I,20/05/2020,Demand-linked costs - Outsource partner,Product Management,Atos IT Services UK Ltd,4016425,"2,046,181.00",Demand Link service charge - April 2020
NS&I,13/05/2020,Unitary fee - Outsource partner,B2B Government Payment Services,Atos IT Services UK Ltd,4016311,"1,292,561.15",Tax-free childcare service charges - April 2020
NS&I,20/05/2020,Unitary fee - Outsource partner,B2B Government Payment Services,Atos IT Services UK Ltd,4016431,"1,292,561.15",Tax-free childcare service charges - May 2020
NS&I,20/05/2020,Unitary fee - Outsource partner,B2B Government Payment Services,Atos IT Services UK Ltd,4016367,"748,929.40",Home Office Payment Processing Service Exit and Transitional fees
NS&I,06/05/2020,Project costs - Outsource partner,Programme Delivery,Atos IT Services UK Ltd,4016396,"700,383.00",FA Portal website service costs
NS&I,06/05/2020,Unitary fee - Outsource partner,B2B Government Payment Services,Atos IT Services UK Ltd,4016341,"610,463.66",Help to save service charges - April 2020
NS&I,20/05/2020,Unitary fee - Outsource partner,B2B Government Payment Services,Atos IT Services UK Ltd,4016430,"610,463.66",Help to save service charges - May 2020
NS&I,06/05/2020,Internal audit fees,Risk,Government Internal Audit Agency,4016293,"421,764.00",Internal Audit Fees  Q4-2019 / 2020
NS&I,20/05/2020,Maintenance and running costs - Outsource partner,Product Management,Atos IT Services UK Ltd,4016487,"283,463.00",Communication on Rate Change
NS&I,13/05/2020,Unitary fee - Outsource partner,B2B Government Payment Services,Atos IT Services UK Ltd,4016435,"328,677.59",Help to buy service charges - May 2020
NS&I,27/05/2020,Rentals under operating leases,Workplace & Culture,Tandem Property Asset Management LLP (Rent & other charges),4016522,"266,685.74",Quarterly Rent for London Office 2020
NS&I,13/05/2020,Unitary fee - Outsource partner,B2B Government Payment Services,Atos IT Services UK Ltd,4016312,"232,222.70",30 hours free childcare Service Charges - April 2020
NS&I,20/05/2020,Unitary fee - Outsource partner,B2B Government Payment Services,Atos IT Services UK Ltd,4016432,"232,222.70",30 hours free childcare Service Charges - May 2020
NS&I,20/05/2020,Professional services - Legal,Property & Commercial Contracts,PA Consulting Services Ltd,4016509,"188,828.40",Strategic Business Advice and Support
NS&I,20/05/2020,Project costs - Outsource partner,Programme Delivery,Atos IT Services UK Ltd,4016426,"180,961.00",Data Transfer service
NS&I,20/05/2020,Unitary fee - Outsource partner,B2B Government Payment Services,Atos IT Services UK Ltd,4016420,"157,199.68",Tax-free childcare service charges March 2020
NS&I,13/05/2020,Unitary fee - Outsource partner,B2B Government Payment Services,Atos IT Services UK Ltd,4016455,"130,832.41",Court Funds Office Service Charges - March and April 2020
NS&I,20/05/2020,Unitary fee - Outsource partner,B2B Government Payment Services,Atos IT Services UK Ltd,4016496,"130,832.41",Court Funds Office Service Charges - March and April 2020
NS&I,20/05/2020,Project costs - Outsource partner,Programme Delivery,Atos IT Services UK Ltd,4016428,"126,605.00",Costs of regulatory change
NS&I,28/05/2020,Project costs - Outsource partner,Programme Delivery,Atos IT Services UK Ltd,4016538,"126,605.00",Costs of regulatory change
NS&I,20/05/2020,Unitary fee - Outsource partner,B2B Government Payment Services,Atos IT Services UK Ltd,4016400,"121,572.23",Tax-free childcare service charges March 2020
NS&I,20/05/2020,Unitary fee - Outsource partner,B2B Government Payment Services,Atos IT Services UK Ltd,4016402,"121,572.23",30 hours free childcare Service Charges - March 2020
NS&I,06/05/2020,Professional services - Other,Finance,Atos IT Services UK Ltd,4016345,"110,616.00",Financial Ledger Annual Licence Cost 2020
NS&I,27/05/2020,Building services charge,Workplace & Culture,Office For National Statistics,4016517,"97,160.04",Business Rates for 1 Drummond Gate
NS&I,27/05/2020,Project costs - Outsource partner,Programme Delivery,Atos IT Services UK Ltd,4016508,"86,555.00",Information systems testing 
NS&I,28/05/2020,Maintenance and running costs - Outsource partner,Business Insight,Atos IT Services UK Ltd,4016537,"84,011.00",Data warehouse development work 
NS&I,13/05/2020,Maintenance and running costs - Outsource partner,IS & Information Assurance,Atos IT Services UK Ltd,4016461,"82,325.00",Delivering IT orchestration improvements March 2020
NS&I,06/05/2020,Project costs - Outsource partner,Programme Delivery,Atos IT Services UK Ltd,4016352,"80,217.00",Information systems testing 
NS&I,13/05/2020,Business intelligence and analysis,Business Insight,CACI Ltd,4016442,"78,139.20",Software Licences 
NS&I,20/05/2020,Maintenance and running costs - Outsource partner,Change Delivery,Atos IT Services UK Ltd,4016423,"75,000.00",Transformation programme management cost April 2020
NS&I,27/05/2020,Building services charge,Workplace & Culture,Tandem Property Asset Management LLP (Service charge only),4016523,"63,630.37",Quarterly Rent service charges for London Office 2020
NS&I,06/05/2020,Project costs - Outsource partner,Programme Delivery,Atos IT Services UK Ltd,4016392,"60,071.00",Enhancing delivery channels
NS&I,28/05/2020,Maintenance and running costs - Outsource partner,Retail Experience,Open Banking Ltd,4016541,"56,575.86",Strategic Business Advice 
NS&I,27/05/2020,Maintenance and running costs - Outsource partner,Retail Experience,Atos IT Services UK Ltd,4016507,"51,940.00",Open Banking Charges - March 2020
NS&I,20/05/2020,Unitary fee - Outsource partner,B2B Government Payment Services,Atos IT Services UK Ltd,4016401,"51,490.74",Tax-free childcare service charges - March 2020
NS&I,13/05/2020,Maintenance and running costs - Outsource partner,Product Management,Discovery Research Ltd.,4016473,"50,000.00",Data modelling project costs
NS&I,29/05/2020,Maintenance and running costs - Outsource partner,Retail Experience,Atos IT Services UK Ltd,4016548,"47,600.00",Open Banking Charges - April 2020
NS&I,28/05/2020,Advertising and production,Marketing Communications,Manning Gottlieb OMD,4016536,"42,669.62",Cost of Marketing Campaigns
NS&I,29/05/2020,Maintenance and running costs - Outsource partner,Retail Experience,Atos IT Services UK Ltd,4016550,"38,192.00",Website Improvement Costs 
NS&I,06/05/2020,Project costs - Outsource partner,Programme Delivery,Atos IT Services UK Ltd,4016374,"38,148.00","Enhance, identify, detect and isolate malicious cyber activity"
NS&I,13/05/2020,Professional services - Legal,Property & Commercial Contracts,Bloom Procurement Services Limited,4016440,"36,968.70",Strategy development cost
NS&I,27/05/2020,Project costs - Outsource partner,Programme Delivery,Atos IT Services UK Ltd,4016518,"36,944.00",Information systems testing 
NS&I,28/05/2020,Project costs - Outsource partner,Programme Delivery,Atos IT Services UK Ltd,4016529,"36,315.00",Strategic IT work investigation costs
NS&I,20/05/2020,Project costs - Outsource partner,Programme Delivery,Atos IT Services UK Ltd,4016485,"35,402.00",Open Banking Charges
NS&I,28/05/2020,Advertising and production,Marketing Communications,Manning Gottlieb OMD,4016539,"34,135.68",Open Banking Charges
NS&I,06/05/2020,Business intelligence and analysis,Market Intelligence & Research,MoneyFacts Group,4016418,"33,660.00",Open Banking Charges
NS&I,28/05/2020,Project costs - Outsource partner,Programme Delivery,Atos IT Services UK Ltd,4016528,"33,291.00",Open Banking Charges
NS&I,06/05/2020,Project costs - Outsource partner,Programme Delivery,Atos IT Services UK Ltd,4016382,"31,468.00",Information systems testing 
NS&I,13/05/2020,Professional services - Other,IS & Information Assurance,Bloom Procurement Services Limited,4016447,"30,212.28",Strategy development cost
NS&I,27/05/2020,Maintenance and running costs - Outsource partner,Retail Experience,Atos IT Services UK Ltd,4016463,"25,443.00",Customer Experience Platform support costs
NS&I,29/05/2020,Maintenance and running costs - Outsource partner,Retail Experience,Atos IT Services UK Ltd,4016547,"25,356.00",Customer Experience Platform support costs
,,,,,,"16,192,027.16",
